bitfinex/quotes_ETHUSD_20260225
["timestamp","ask_amount","ask_price","bid_price","bid_amount"]
[1771996401194,1.31337599,1906.4,1906.1,0.001]
[1771996401393,2.40252447,1906.3,1906.1,0.001]
[1771996407406,2.52572464,1906.2,1905.8,2.38400413]
[1771996408192,2.52572464,1906.2,1905.8,3.695774]
[1771996408386,2.52572464,1906.1,1905.7,2.38400413]
[1771996408689,2.52572464,1906.0,1905.7,3.69584908]
[1771996410880,2.52572464,1906.0,1905.9,0.001]
[1771996418011,2.52572464,1905.9,1905.5,3.6959474]
[1771996418511,2.52572464,1905.9,1905.5,2.38400413]
[1771996418712,2.52572464,1905.9,1905.5,3.69593793]
[1771996424120,2.52572464,1905.9,1905.6,2.38400413]
[1771996425236,2.52572464,1905.9,1905.6,2.38500413]
[1771996425438,2.52772464,1905.9,1905.6,2.38500413]
[1771996426331,2.52772464,1905.9,1905.6,0.001]
[1771996429125,2.52572464,1905.8,1905.6,0.001]
[1771996429720,2.52572464,1905.7,1905.3,1.574]
[1771996429932,2.52572464,1905.7,1905.3,2.88612106]
[1771996431319,2.52572464,1905.7,1905.3,3.69612519]
[1771996431829,2.52572464,1905.7,1905.4,2.38400413]
[1771996432631,3.83948553,1905.9,1905.4,0.6612508]
[1771996432831,3.83948553,1905.9,1905.5,2.38400413]
[1771996433227,2.52492464,1905.8,1905.5,2.38400413]
[1771996434838,2.52572464,1905.7,1905.1,1.97351787]
[1771996435529,2.52572464,1905.7,1905.1,1.31226707]
[1771996435734,2.52572464,1905.7,1905.1,1.97351787]
[1771996436342,2.38246525,1905.6,1905.2,2.26496629]
[1771996437943,2.38246525,1905.6,1905.1,3.57722069]
[1771996438636,2.38246525,1905.6,1905.2,2.26496629]
[1771996439538,3.69438955,1905.6,1905.2,2.26596629]
[1771996439746,1.3119243,1905.6,1905.2,2.26596629]
[1771996439926,3.69638955,1905.6,1905.2,2.26596629]
[1771996440248,2.38446525,1905.6,1905.2,2.26596629]
[1771996440934,2.38246525,1905.5,1905.2,0.001]
[1771996441440,2.38246525,1905.4,1905.0,3.37289541]
[1771996441654,2.38246525,1905.4,1905.0,1.10792912]
[1771996442857,0.47415124,1905.6,1905.0,3.39431321]
[1771996443152,1.29486332,1905.5,1905.0,3.39431321]
[1771996443450,1.29486332,1905.5,1905.0,4.70664603]
[1771996443953,2.38246525,1905.4,1905.0,4.70664603]
[1771996444543,2.38246525,1905.4,1905.0,1.09080084]
[1771996444747,2.38246525,1905.4,1905.0,2.40313212]
[1771996445056,2.38246525,1905.4,1905.0,5.16203472]
[1771996445226,2.38246525,1905.4,1905.0,3.84970344]
[1771996446240,2.38246525,1905.4,1904.5,3.07152358]
[1771996446241,2.38246525,1905.0,1904.5,3.07152358]
[1771996446435,2.89956767,1905.1,1904.5,3.07152358]
[1771996446639,2.38246525,1904.9,1904.3,3.16373688]
[1771996446944,2.38246525,1904.8,1904.4,3.07152358]
[1771996447143,2.38246525,1904.8,1904.3,0.0922133]
[1771996447357,2.38246525,1904.8,1904.1,3.07152358]
[1771996447725,2.38246525,1904.4,1904.1,3.07152358]
[1771996447931,2.38246525,1904.2,1904.0,5.0]
[1771996448131,2.28378197,1904.2,1904.0,5.0]
[1771996448635,2.38246525,1904.5,1904.0,6.31301915]
[1771996448841,2.38246525,1904.5,1904.1,3.14605887]
[1771996449038,3.69514879,1904.5,1904.1,3.14605887]
[1771996449246,3.69515051,1904.5,1904.1,3.14605887]
[1771996449559,2.38246525,1904.4,1904.0,5.0]
[1771996450141,2.38246525,1904.4,1904.0,8.14605887]
[1771996450836,2.38246525,1904.4,1904.0,9.45907747]
[1771996451035,2.38246525,1904.4,1904.1,3.14605887]
[1771996453230,2.38246525,1904.4,1904.2,0.001]
[1771996453860,2.38246525,1904.7,1904.3,3.66316129]
[1771996454159,2.38246525,1904.9,1904.3,3.66316129]
[1771996454461,2.38246525,1904.9,1904.5,3.14605887]
[1771996456148,2.38246525,1904.8,1904.5,3.14605887]
[1771996456349,2.38246525,1904.8,1904.3,4.45884982]
[1771996457362,2.38246525,1905.2,1904.7,3.14605887]
[1771996457560,2.38246525,1905.2,1904.9,0.51710242]
[1771996457862,2.38246525,1905.2,1904.8,4.45851277]
[1771996458261,2.38246525,1905.2,1904.8,4.97561519]
[1771996458464,0.002,1905.3,1904.8,4.97561519]
[1771996458465,0.002,1905.3,1905.1,3.66316129]
[1771996458636,0.002,1905.3,1905.2,3.14605887]
[1771996459256,0.002,1905.3,1905.2,3.66316129]
[1771996459663,0.002,1905.3,1905.2,3.14605887]
[1771996460036,0.002,1905.3,1905.2,4.97535948]
[1771996460230,0.002,1905.4,1905.2,4.97535948]
[1771996460464,0.002,1905.6,1905.2,4.97535948]
[1771996460636,0.006,1905.6,1905.2,4.97535948]
[1771996461967,0.004,1905.5,1905.2,3.14605887]
[1771996462164,2.38646525,1905.5,1905.1,1.31221713]
[1771996462343,0.004,1905.4,1905.0,4.45839151]
[1771996462543,0.02738673,1905.2,1905.0,4.45839151]
[1771996463645,0.03138673,1905.2,1905.0,4.45839151]
[1771996464444,0.02738673,1905.2,1905.0,4.45839151]
[1771996465179,2.38246525,1905.4,1905.0,4.45839151]
[1771996465976,2.38246525,1905.4,1904.8,7.34171037]
[1771996465977,5.95313067,1905.3,1904.8,7.34171037]
[1771996466168,5.95713067,1905.3,1905.1,0.001]
[1771996469579,0.004,1905.2,1904.9,7.09716343]
[1771996472048,5.95313067,1905.3,1904.9,7.09716343]
[1771996472248,0.004,1905.2,1904.9,7.09716343]
[1771996472450,1.31404123,1905.5,1904.9,7.09716343]
[1771996472665,7.71214421,1905.5,1904.9,7.09716343]
[1771996473172,6.40010298,1905.5,1905.0,6.15737582]
[1771996475078,6.40010298,1905.5,1905.0,7.46964957]
[1771996475245,6.40010298,1905.5,1904.9,6.15737582]
[1771996475246,6.39810298,1905.3,1904.9,6.15737582]
[1771996477389,7.71028214,1905.3,1904.9,6.15737582]
[1771996478399,7.70948214,1905.3,1904.9,6.15737582]
[1771996478594,7.70948214,1905.3,1905.0,0.001]
[1771996479157,7.70948214,1905.3,1905.0,6.15837582]
[1771996480184,6.40210298,1905.2,1905.0,0.001]
[1771996481495,6.40050298,1905.1,1904.8,0.001]
[1771996481700,6.39810298,1905.1,1904.8,0.0002]
[1771996481866,6.39810298,1905.1,1904.5,1.31262087]
[1771996481867,7.71053342,1904.9,1904.5,6.15737582]
[1771996482067,1088.20511562,1907.0,1904.5,7.4700519]
[1771996482262,0.54491365,1905.1,1904.6,6.22327007]
[1771996484816,1.31233595,1905.0,1904.6,6.22247007]
[1771996485015,1.8572327,1905.1,1904.6,7.53507126]
[1771996485201,1.85718708,1905.1,1904.6,7.53507126]
[1771996485721,1.85718708,1905.1,1904.6,6.22247007]
[1771996486735,1.85718708,1905.1,1904.6,7.53507863]
[1771996487229,1.85718708,1905.1,1904.6,6.22247007]
[1771996487430,1.85718708,1905.1,1904.6,7.04986847]
[1771996487608,1.85718708,1905.1,1904.7,6.22714317]
[1771996488133,1.85718708,1905.1,1904.7,6.22634317]
[1771996488624,0.54491365,1905.1,1904.7,6.22634317]
[1771996488835,1.85865416,1905.3,1904.9,6.22674317]
[1771996489842,0.54651365,1905.3,1904.9,7.53914243]
[1771996490030,1.85865884,1905.3,1904.9,6.22674317]
[1771996491044,0.002,1905.2,1904.9,6.22674317]
[1771996491237,0.002,1905.2,1904.9,6.22594317]
[1771996496777,0.54731365,1905.1,1904.8,0.8273984]
[1771996497164,0.54731365,1905.1,1904.8,7.05374157]
[1771996499492,1.86153983,1905.2,1904.8,7.05374157]
[1771996499783,1.31422618,1905.2,1904.8,7.05374157]
[1771996500487,1.86153983,1905.2,1904.8,7.05374157]
[1771996502798,0.54731365,1905.1,1904.8,6.22634317]
[1771996502967,0.54731365,1905.1,1904.7,7.05474157]
[1771996503364,0.54731365,1905.1,1904.7,6.22734317]
[1771996503682,0.54731365,1904.9,1904.5,0.001]
[1771996504594,0.54731365,1904.9,1904.8,0.001]
[1771996505062,0.54731365,1904.9,1904.6,0.001]
[1771996505699,1.8587874,1904.8,1904.6,0.001]
[1771996507374,0.54631365,1904.7,1904.6,0.001]
[1771996509205,1.31236682,1905.0,1904.6,6.22784317]
[1771996509502,1.31236682,1905.0,1904.7,7.05424157]
[1771996511120,1.31232256,1905.1,1904.7,7.05424157]
[1771996513714,0.54631365,1905.1,1904.7,7.05424157]
[1771996513881,0.54831365,1905.2,1904.7,7.05424157]
[1771996516378,1.85858072,1905.1,1904.7,7.05524157]
[1771996516588,0.002,1905.0,1904.7,7.05524157]
[1771996523328,0.002,1905.0,1904.7,7.05540591]
[1771996524517,0.002,1905.0,1904.8,0.51715878]
[1771996526703,0.002,1905.0,1904.8,6.74400195]
[1771996527324,0.002,1905.0,1904.8,6.22684317]
[1771996528301,1000.002,1905.0,1904.8,6.74400195]
[1771996528502,974.43968816,1905.0,1904.9,0.51715878]
[1771996529031,974.43968816,1905.0,1904.8,6.74500195]
[1771996529205,0.002,1904.9,1904.8,6.74500195]
[1771996531434,974.44168816,1905.0,1904.8,6.74500195]
[1771996535440,974.44168816,1905.0,1904.3,6.2863384]
[1771996535441,0.79882033,1904.9,1904.3,6.2863384]
[1771996535639,0.79882033,1904.9,1904.5,6.80349718]
[1771996535933,0.79882033,1904.9,1904.5,6.2863384]
[1771996537038,0.79882033,1904.9,1904.4,6.2863384]
[1771996537426,6.44413517,1904.8,1904.4,7.59905487]
[1771996537627,6.44413517,1904.8,1904.5,0.51715878]
[1771996539155,6.44413517,1904.8,1904.4,6.2863384]
[1771996539326,6.44413517,1904.8,1904.4,6.80349718]
[1771996540751,7.75655262,1904.9,1904.4,6.80349718]
[1771996541648,7.75655262,1904.9,1904.4,6.80449718]
[1771996541867,6.44413517,1904.9,1904.5,6.2863384]
[1771996542063,7.75854038,1904.9,1904.5,6.2863384]
[1771996542551,974.44168816,1905.0,1904.8,6.80349718]
[1771996542753,974.44168816,1905.0,1904.8,6.2863384]
[1771996545221,974.44168816,1905.0,1904.8,6.80349718]
[1771996545726,0.002,1905.1,1905.0,25.55831184]
[1771996546345,1.31426707,1905.1,1905.0,25.55831184]
[1771996546539,0.002,1905.1,1905.0,25.55831184]
[1771996549448,6.44613517,1905.1,1905.0,19.05831184]
[1771996551238,7.75841799,1905.1,1904.8,6.2863384]
[1771996551958,7.75841799,1905.1,1904.6,8.11605804]
[1771996552160,7.75841799,1905.1,1904.6,1.82971964]
[1771996552331,7.75841799,1905.1,1904.7,6.2863384]
[1771996553931,0.002,1905.0,1904.7,6.2863384]
[1771996554341,6.44613517,1905.0,1904.7,6.2863384]
[1771996558635,0.002,1905.0,1904.7,6.2863384]
[1771996561871,0.002,1905.0,1904.8,6.0227717]
[1771996562074,0.002,1905.3,1905.1,6.0227717]
[1771996562368,0.002,1905.5,1905.1,6.0227717]
[1771996562672,0.004,1905.5,1905.1,7.33499387]
[1771996562870,0.004,1905.5,1905.1,1.82938095]
[1771996563034,1.31175937,1905.9,1905.5,6.0227717]
[1771996563238,7.72394368,1905.9,1905.5,6.0227717]
[1771996563866,6.41218431,1905.9,1905.5,6.53993048]
[1771996564181,0.002,1905.9,1905.6,6.53993048]
[1771996564476,0.002,1905.9,1905.6,6.0227717]
[1771996564860,0.002,1905.9,1905.7,6.53993048]
[1771996565059,0.002,1905.9,1905.7,6.0227717]
[1771996566073,1.31151855,1906.2,1905.7,6.53993048]
[1771996566270,6.41218431,1906.4,1905.7,6.53993048]
[1771996566444,6.41418431,1906.4,1906.1,6.0227717]
[1771996566644,1.31135718,1906.5,1905.9,6.0227717]
[1771996566645,6.41418431,1906.3,1905.9,6.0227717]
[1771996566845,6.41218431,1906.3,1905.9,7.33447529]
[1771996567572,0.002,1906.4,1906.0,6.0227717]
[1771996567739,0.002,1906.3,1906.2,0.51715878]
[1771996567944,0.002,1906.4,1906.2,6.53993048]
[1771996568167,0.002,1906.4,1906.2,6.0227717]
[1771996568379,0.002,1906.4,1906.2,6.53993048]
[1771996568582,0.002,1906.4,1906.2,6.0227717]
[1771996569068,6.41418431,1906.3,1906.0,7.33438047]
[1771996569275,6.41218431,1906.3,1906.0,7.33438047]
[1771996569449,6.41218431,1906.3,1906.0,6.0227717]
[1771996569862,6.41218431,1906.3,1906.0,6.53993048]
[1771996570556,6.41218431,1906.3,1906.0,6.0227717]
[1771996571151,6.41218431,1906.1,1905.6,6.0227717]
[1771996571460,6.41218431,1905.9,1905.4,6.0227717]
[1771996571771,6.41218431,1905.9,1905.6,6.53993048]
[1771996572153,0.002,1905.8,1905.6,6.53993048]
[1771996572352,6.41218431,1906.1,1905.6,6.0227717]
[1771996573544,6.41418431,1906.0,1905.6,6.0227717]
[1771996575972,0.002,1905.9,1905.6,6.53993048]
[1771996576168,0.002,1906.0,1905.7,6.0227717]
[1771996576778,6.41218431,1905.9,1905.5,6.53993048]
[1771996576981,6.41418431,1905.9,1905.5,6.53993048]
[1771996577478,6.41218431,1905.9,1905.5,6.53993048]
[1771996578360,6.41218431,1905.9,1905.6,0.001]
[1771996578361,7.72594521,1905.9,1905.6,0.001]
[1771996578769,0.002,1905.8,1905.6,6.0237717]
[1771996580780,0.002,1905.8,1905.6,6.54093048]
[1771996581163,0.002,1905.8,1905.6,6.0237717]
[1771996583288,0.004,1905.8,1905.6,6.0237717]
[1771996584391,0.002,1905.8,1905.6,6.0237717]
[1771996588292,0.004,1905.8,1905.6,6.0237717]
[1771996589187,0.004,1905.8,1905.6,7.33568046]
[1771996590408,0.002,1906.1,1905.8,7.6884865]
[1771996590583,0.002,1906.1,1906.0,6.37672202]
[1771996591163,6.08539393,1906.1,1905.6,6.37772202]
[1771996591363,0.002,1905.8,1905.6,6.37772202]
[1771996594682,6.08539393,1905.8,1905.6,0.001]
[1771996595190,7.39720897,1905.8,1905.6,0.001]
[1771996600476,7.39720897,1905.8,1905.3,0.001]
[1771996600683,6.08339393,1905.7,1905.3,0.001]
[1771996601210,6.08339393,1905.7,1905.2,5.37650964]
[1771996601598,6.08339393,1905.7,1905.0,6.37672202]
[1771996603177,6.08339393,1905.5,1905.0,6.37672202]
[1771996604001,6.08339393,1905.5,1905.4,0.001]
[1771996604199,6.08339393,1905.5,1905.0,6.37672202]
[1771996604400,6.08339393,1905.3,1904.9,6.37672202]
[1771996604601,6.08339393,1905.3,1904.8,0.001]
[1771996605111,7.39559212,1905.2,1904.8,6.37772202]
[1771996610209,1.31219819,1905.2,1904.8,6.37772202]
[1771996610513,6.08339393,1905.2,1904.8,7.69018759]
[1771996610815,6.08339393,1905.4,1905.1,6.37672202]
[1771996611209,7.39546449,1905.4,1905.1,6.37672202]
[1771996613704,1.79331558,1905.7,1905.1,6.37672202]
[1771996615004,1.79331558,1905.5,1905.1,6.37672202]
[1771996615207,2.94953101,1905.6,1905.1,7.68896241]
[1771996616002,2.95153101,1905.6,1905.1,7.68896241]
[1771996617326,2.95153101,1905.6,1905.1,6.37672202]
[1771996617710,2.95153101,1905.6,1905.1,7.68898503]
[1771996618331,1.63760826,1905.5,1905.1,7.68898503]
[1771996618629,1.63760826,1905.5,1905.1,6.37672202]
[1771996620108,1.63760826,1905.4,1905.1,6.37672202]
[1771996622033,2.9497232,1905.4,1905.1,6.37672202]
[1771996622343,1.63760826,1905.3,1904.8,0.001]
[1771996623736,1.63660826,1905.1,1904.8,0.001]
[1771996624230,1.63660826,1904.9,1904.7,0.001]
[1771996627236,2.94908201,1904.8,1904.7,0.001]
[1771996628336,1.63660826,1904.8,1904.7,0.001]
[1771996628539,2.94906759,1904.9,1904.7,0.001]
[1771996629329,1.63660826,1904.9,1904.7,0.001]
[1771996629532,2.94898717,1905.0,1904.7,6.25175632]
[1771996629731,2.94890851,1905.1,1904.7,6.25175632]
[1771996630441,2.95076119,1905.3,1904.9,6.25075632]
[1771996631038,2.95076119,1905.3,1904.7,6.25175632]
[1771996631039,1.63660826,1905.2,1904.7,6.25175632]
[1771996631550,2.94887533,1905.1,1904.7,6.25175632]
[1771996632142,1.63660826,1905.0,1904.7,6.25175632]
[1771996633645,1.63660826,1904.9,1904.7,0.001]
[1771996636358,2.94904681,1904.9,1904.7,0.001]
[1771996638746,1.63660826,1904.8,1904.7,0.001]
[1771996641264,1.63860826,1904.8,1904.7,0.001]
[1771996642031,0.002,1904.8,1904.7,0.001]
[1771996642257,0.002,1904.8,1904.7,6.25175632]
[1771996645058,1.63860826,1905.1,1904.8,6.25075632]
[1771996645267,0.002,1905.1,1904.8,6.25075632]
[1771996645577,0.002,1905.1,1904.8,7.07835223]
[1771996646276,0.002,1905.1,1904.8,6.76787703]
[1771996647290,0.002,1905.1,1904.9,1.31240485]
[1771996647595,0.002,1905.1,1905.0,5.87322714]
[1771996650783,0.002,1905.1,1905.0,7.18556309]
[1771996654001,0.002,1905.3,1905.1,5.87322714]
[1771996655370,0.002,1905.4,1905.2,6.39034785]
[1771996655570,0.002,1905.6,1905.4,5.87322714]
[1771996658393,1.64260826,1905.6,1905.2,5.87322714]
[1771996659580,1.64060826,1905.5,1905.2,5.87322714]
[1771996659762,1.31395549,1905.6,1905.2,5.87322714]
[1771996660098,2.95456375,1905.6,1905.2,5.87322714]
[1771996661477,0.002,1905.6,1905.3,5.87322714]
[1771996661991,0.002,1905.6,1905.3,6.39034785]
[1771996662189,0.002,1905.6,1905.4,5.87322714]
[1771996663191,0.002,1905.6,1905.4,6.39034785]
[1771996663792,0.002,1905.7,1905.6,5.87322714]
[1771996666902,0.002,1905.9,1905.7,5.87322714]
[1771996667202,0.002,1905.9,1905.7,6.39034785]
[1771996667903,17.72042082,1906.0,1905.9,5.87322714]
[1771996668204,0.002,1906.1,1906.0,5.87322714]
[1771996668699,0.002,1906.1,1905.8,5.87322714]
[1771996668902,2.16172897,1906.1,1905.6,5.87322714]
[1771996669205,2.16172897,1906.1,1905.4,5.87422714]
[1771996669206,1.64460826,1905.8,1905.4,5.87422714]
[1771996670078,1.64260826,1905.6,1905.4,0.001]
[1771996670702,1.3119916,1905.5,1905.4,0.001]
[1771996670877,2.95459986,1905.5,1905.4,0.001]
[1771996672804,1.31197498,1905.6,1905.4,0.001]
[1771996675606,1.64260826,1905.6,1905.4,0.001]
[1771996676206,1.31383157,1905.8,1905.4,6.34923754]
[1771996676577,2.95643983,1905.8,1905.4,6.34923754]
[1771996677708,1.64160826,1905.5,1905.3,0.001]
[1771996680882,2.95359986,1905.5,1905.4,0.001]
[1771996681103,1.82911231,1905.5,1904.8,0.001]
[1771996681285,6.31771457,1905.4,1904.9,6.34823754]
[1771996681478,6.83483528,1905.4,1904.9,6.34823754]
[1771996681992,1.3119916,1905.5,1904.9,6.86535825]
[1771996682207,7.63154091,1905.8,1905.4,6.34823754]
[1771996682407,1.31382634,1905.8,1905.4,6.34823754]
[1771996682781,0.002,1905.8,1905.4,6.34823754]
[1771996682981,1.31379078,1905.8,1905.4,6.34823754]
[1771996683484,0.002,1905.8,1905.4,6.34823754]
[1771996683702,0.002,1905.8,1905.4,7.6602721]
[1771996683907,0.002,1905.8,1905.4,6.34823754]
[1771996684616,0.002,1905.8,1905.4,7.66029709]
[1771996684780,0.002,1905.8,1905.4,6.34823754]
[1771996684978,0.002,1905.8,1905.6,6.34823754]
[1771996693702,0.002,1905.7,1905.6,6.34823754]
[1771996694707,0.002,1905.7,1905.6,7.66016029]
[1771996695812,0.002,1905.8,1905.7,6.34823754]
[1771996696185,0.002,1905.8,1905.7,6.86535825]
[1771996696708,0.002,1905.8,1905.7,6.34823754]
[1771996699508,0.002,1905.9,1905.7,6.34823754]
[1771996701118,0.002,1906.2,1905.8,6.86535825]
[1771996701412,0.002,1906.2,1906.0,6.34823754]
[1771996701826,6.31971457,1906.2,1905.8,6.34823754]
[1771996704012,1.31157861,1906.1,1905.8,6.34823754]
[1771996704318,7.62929318,1906.1,1905.6,6.34823754]
[1771996704927,1.82869932,1906.1,1905.6,6.34823754]
[1771996705115,6.31771457,1906.0,1905.5,6.34823754]
[1771996707028,7.26836256,1905.9,1905.7,0.001]
[1771996708826,5.95664632,1905.9,1905.7,0.001]
[1771996709024,5.95864632,1906.0,1905.7,6.06429584]
[1771996709228,0.002,1906.0,1905.8,6.06329584]
[1771996710396,7.27031225,1906.0,1905.7,6.06429584]
[1771996710595,7.27031225,1906.0,1905.7,0.001]
[1771996711236,5.95664632,1905.9,1905.7,0.001]
[1771996714531,7.26839836,1905.9,1905.7,0.001]
[1771996715139,7.26839836,1905.9,1905.2,6.06329584]
[1771996715437,5.95664632,1905.7,1905.2,6.06329584]
[1771996715844,5.95664632,1905.7,1905.2,7.37549011]
[1771996716524,6.07564953,1906.0,1905.2,6.06329584]
[1771996716525,7.26856907,1905.6,1905.2,6.06329584]
[1771996717027,5.95664632,1905.6,1905.2,7.37548999]
[1771996718211,0.002,1906.0,1905.6,6.06329584]
[1771996718416,0.002,1906.0,1905.8,6.06329584]
[1771996718632,0.27603624,1906.0,1905.8,6.06329584]
[1771996718842,6.78362879,1905.9,1905.0,0.001]
[1771996719151,5.95664632,1905.6,1905.0,6.06429584]
[1771996720550,5.95664632,1905.4,1905.1,0.001]
[1771996723260,7.26877564,1905.3,1905.1,0.001]
[1771996726053,5.95664632,1905.2,1904.8,0.001]
[1771996726552,0.09783933,1904.7,1904.6,0.001]
[1771996728050,1.41038198,1904.7,1904.6,0.001]
[1771996731554,5.95664632,1905.0,1904.6,6.06429584]
[1771996731851,7.26901721,1905.0,1904.6,6.06429584]
[1771996732029,7.26901721,1905.0,1904.6,0.001]
[1771996733345,7.26901721,1905.0,1904.7,0.001]
[1771996735563,7.26901721,1905.0,1904.6,0.001]
[1771996740656,1.31237089,1905.0,1904.7,4.24662758]
[1771996740861,7.78064216,1905.0,1904.6,4.24762758]
[1771996741159,6.46827127,1904.9,1904.5,0.001]
[1771996742164,6.46827127,1904.9,1904.5,3.26489372]
[1771996743264,7.78074502,1904.8,1904.5,3.26489372]
[1771996745466,7.78074502,1904.8,1904.6,0.001]
[1771996745664,7.78274502,1904.8,1904.6,0.001]
[1771996745963,6.46827127,1904.7,1904.4,0.001]
[1771996748234,1.31261157,1904.6,1904.4,0.001]
[1771996749769,1.31261157,1904.6,1904.4,3.07825842]
[1771996758571,1.31261157,1904.6,1904.5,0.001]
[1771996759870,7.78088284,1904.6,1904.5,0.001]
[1771996760068,6.46827127,1904.6,1904.5,0.001]
[1771996760604,7.78088284,1904.6,1904.5,0.001]
[1771996764671,7.78088284,1904.6,1904.3,0.001]
[1771996764672,6.46827127,1904.5,1904.3,0.001]
[1771996764878,6.74226137,1904.3,1903.6,3.07825842]
[1771996765062,0.82698247,1903.9,1903.6,3.07825842]
[1771996766455,7.08966665,1903.9,1903.6,3.07825842]
[1771996766876,8.4028016,1903.9,1903.6,3.07825842]
[1771996767285,8.40472983,1903.9,1903.6,3.07825842]
[1771996768156,0.8289107,1903.7,1903.1,1.31358526]
[1771996768448,7.01806225,1903.7,1903.2,11.362]
[1771996768646,7.01806225,1903.7,1903.2,6.221]
[1771996769284,7.01806225,1903.7,1903.2,1.31352748]
[1771996770661,5.2525059,1903.9,1903.2,1.83158973]
[1771996770662,0.51806225,1903.9,1903.2,1.83158973]
[1771996770978,6.01464279,1904.2,1903.7,6.26340136]
[1771996771175,6.01464279,1904.2,1903.7,6.78146361]
[1771996771349,7.84559611,1904.2,1903.8,6.26340136]
[1771996772688,6.01464279,1904.1,1903.8,6.26340136]
[1771996772872,6.53270504,1903.9,1903.5,6.26340136]
[1771996773181,6.01464279,1903.9,1903.5,6.26340136]
[1771996773381,6.01464279,1903.9,1903.5,7.5767372]
[1771996777269,6.01464279,1904.0,1903.6,6.26340136]
[1771996777583,1.31300293,1904.1,1903.6,6.26340136]
[1771996777789,7.32764572,1904.1,1903.6,6.26340136]
[1771996778391,7.32684572,1904.1,1903.6,6.26340136]
[1771996780705,7.32684572,1904.1,1903.6,7.54927265]
[1771996781079,6.01464279,1904.1,1903.6,7.54927265]
[1771996781278,7.32750989,1904.3,1903.7,6.26340136]
[1771996782781,7.32750989,1904.3,1903.8,7.5765645]
[1771996783413,6.01464279,1904.2,1903.8,7.5765645]
[1771996783575,6.01464279,1904.2,1903.8,6.26340136]
[1771996783778,6.53270504,1904.2,1903.6,7.57669042]
[1771996785025,6.01464279,1904.0,1903.6,7.57669042]
[1771996785385,6.01464279,1904.0,1903.6,7.57769042]
[1771996786702,6.53270504,1904.0,1903.6,0.001]
[1771996787009,6.53270504,1904.0,1903.6,6.26440136]
[1771996787218,6.01464279,1903.9,1903.6,6.26440136]
[1771996787790,6.01464279,1903.9,1903.6,0.001]
[1771996790702,6.01464279,1903.8,1903.5,6.26340136]
[1771996793815,7.32780697,1903.8,1903.5,6.26340136]
[1771996794021,6.01464279,1903.8,1903.5,6.26340136]
[1771996795532,7.32781224,1903.8,1903.4,6.15792631]
[1771996795701,7.32781224,1903.8,1903.3,7.47238168]
[1771996796400,6.02415345,1903.8,1903.3,7.47238168]
[1771996799629,7.33732375,1903.8,1903.4,0.001]
[1771996799931,7.33932375,1903.8,1903.4,0.001]
[1771996800827,6.5422157,1903.7,1903.4,0.001]
[1771996801025,6.02415345,1903.5,1903.4,0.001]
[1771996802109,5.85815345,1903.5,1903.4,0.001]
[1771996802306,6.02415345,1903.7,1903.4,0.001]
[1771996802611,0.002,1903.8,1903.4,6.15892631]
[1771996802800,7.33932129,1903.8,1903.4,6.15892631]
[1771996803126,6.02615345,1903.8,1903.4,6.15892631]
[1771996803922,7.3393219,1903.8,1903.4,6.15892631]
[1771996804127,6.5422157,1903.7,1903.4,0.001]
[1771996804325,1.31516845,1903.8,1903.3,0.001]
[1771996804326,6.5422157,1903.5,1903.3,0.001]
[1771996804518,6.02415345,1903.5,1903.3,0.001]
[1771996807239,7.33758132,1903.5,1903.3,0.001]
[1771996808235,7.33678132,1903.5,1903.3,0.001]
[1771996809108,7.85484357,1903.5,1903.3,0.001]
[1771996809424,6.02415345,1903.4,1903.3,0.001]
[1771996811239,6.02335345,1903.4,1903.3,0.001]
[1771996811441,6.02255345,1903.4,1903.3,0.001]
[1771996811744,6.02255345,1903.4,1903.3,0.0002]
[1771996811904,6.02415345,1903.6,1903.3,6.15812631]
[1771996812108,7.33742111,1903.7,1903.3,6.15812631]
[1771996812856,6.5422157,1903.6,1903.3,0.0002]
[1771996813037,6.02415345,1903.4,1903.3,0.0002]
[1771996814042,1.31337633,1903.5,1903.3,0.0002]
[1771996814714,7.33752978,1903.5,1903.3,0.0002]
[1771996814914,6.02415345,1903.5,1903.3,0.0002]
[1771996815746,7.33752405,1903.5,1903.3,0.0002]
[1771996816745,6.02415345,1903.5,1903.3,0.0002]
[1771996818251,7.33752843,1903.5,1903.3,0.0002]
[1771996827064,7.33752843,1903.5,1903.4,0.001]
[1771996827654,7.33952843,1903.5,1903.4,0.001]
[1771996828190,6.02615345,1903.5,1903.4,0.001]
[1771996831659,7.33952355,1903.5,1903.4,0.001]
[1771996833064,6.02615345,1903.5,1903.4,0.001]
[1771996833862,7.33952355,1903.5,1903.4,0.001]
[1771996834547,6.02615345,1903.5,1903.4,0.001]
[1771996836349,0.002,1903.5,1903.4,0.001]
[1771996836640,6.1056874,1903.5,1903.4,0.001]
[1771996840353,7.4190575,1903.5,1903.4,0.001]
[1771996849484,6.1036874,1903.3,1902.9,6.1722915]
[1771996849782,6.1036874,1903.3,1902.7,7.48617759]
[1771996851483,1.31347423,1903.4,1902.9,6.1722915]
[1771996851780,7.41716163,1903.4,1902.9,6.1722915]
[1771996853081,6.1036874,1903.4,1902.9,6.1722915]
[1771996855381,7.41718409,1903.4,1902.9,6.1722915]
[1771996855561,0.002,1903.2,1902.9,6.1722915]
[1771996856180,0.002,1903.2,1902.3,6.1732915]
[1771996856181,6.71299433,1902.9,1902.3,6.1732915]
[1771996856397,7.54203432,1902.9,1902.5,6.1742915]
[1771996856759,7.54203432,1902.9,1902.5,0.001]
[1771996857499,6.43924283,1902.7,1902.5,0.001]
[1771996859483,7.75323421,1902.6,1902.5,0.001]
[1771996859685,6.43924283,1902.6,1902.5,0.001]
[1771996860181,6.43924283,1902.6,1901.8,7.48778886]
[1771996860497,6.43924283,1902.4,1901.8,7.48778886]
[1771996861196,6.43924283,1902.4,1901.9,6.1732915]
[1771996862075,6.43924283,1902.6,1901.9,7.48771201]
[1771996865503,7.75326053,1902.6,1901.9,7.48771201]
[1771996868302,7.75326053,1902.6,1901.9,7.48691201]
[1771996868498,7.75326053,1902.6,1902.0,6.1734915]
[1771996868873,6.43924283,1902.4,1902.0,0.001]
[1771996869597,6.43924283,1902.4,1902.0,6.1734915]
[1771996870804,6.43924283,1902.6,1902.2,6.1724915]
[1771996871004,1.31364615,1903.1,1902.4,7.10652537]
[1771996871005,6.43924283,1903.0,1902.4,7.10652537]
[1771996872298,6.43924283,1903.1,1902.7,6.27748538]
[1771996872692,6.43924283,1903.1,1902.7,6.25011023]
[1771996872881,6.43924283,1903.1,1902.8,6.25011023]
[1771996873806,0.002,1903.2,1902.8,6.25011023]